bitfinex-derivatives/quotes_BTCF0:USTF0_20250517
["timestamp","ask_amount","ask_price","bid_price","bid_amount"]
[1747472390952,1.389431,103460.0,103450.0,0.2919662]
[1747472391153,1.39487316,103460.0,103450.0,0.2919662]
[1747472392455,1.39487316,103460.0,103450.0,0.0987]
[1747472392656,1.42687316,103460.0,103450.0,0.0987]
[1747472393246,1.54755003,103460.0,103450.0,0.0987]
[1747472393756,1.54755003,103460.0,103450.0,0.2919662]
[1747472394161,1.54755003,103460.0,103450.0,0.36430299]
[1747472394855,1.40636472,103460.0,103450.0,0.36430299]
[1747472395045,1.48475003,103460.0,103450.0,0.36430299]
[1747472395957,1.33405184,103460.0,103450.0,0.32874059]
[1747472397555,1.25566653,103460.0,103450.0,0.32874059]
[1747472397753,1.22296653,103460.0,103450.0,0.32874059]
[1747472398054,1.25586653,103460.0,103450.0,0.32874059]
[1747472398259,1.07586653,103460.0,103450.0,0.32874059]
[1747472398761,1.15425184,103460.0,103450.0,0.32874059]
[1747472399350,1.12408532,103460.0,103450.0,0.3642997]
[1747472400361,1.04570001,103460.0,103450.0,0.3642997]
[1747472400849,1.12408532,103460.0,103450.0,0.3642997]
[1747472403163,0.76328532,103460.0,103450.0,0.3642997]
[1747472403862,0.79378532,103460.0,103450.0,0.3642997]
[1747472404362,0.43298532,103460.0,103450.0,0.3642997]
[1747472404561,0.79378532,103460.0,103450.0,0.3642997]
[1747472405159,0.82568532,103460.0,103450.0,0.3642997]
[1747472405360,0.82568532,103460.0,103450.0,0.2675997]
[1747472405558,0.82568532,103460.0,103450.0,0.1050335]
[1747472405758,0.82568532,103460.0,103450.0,0.0743335]
[1747472406161,1.00568532,103460.0,103450.0,0.1050335]
[1747472406459,1.00568532,103460.0,103450.0,0.06947439]
[1747472406659,1.00568532,103460.0,103450.0,0.26274059]
[1747472407165,1.00568532,103460.0,103450.0,0.06947439]
[1747472407767,1.12636219,103460.0,103450.0,0.06947439]
[1747472408168,1.12636219,103460.0,103450.0,0.26274059]
[1747472408369,1.12636219,103460.0,103450.0,0.23204059]
[1747472409470,1.12636219,103460.0,103450.0,0.03877439]
[1747472410860,1.48716219,103460.0,103450.0,0.03877439]
[1747472412971,1.48716219,103460.0,103450.0,0.07107439]
[1747472413173,1.30716219,103460.0,103450.0,0.25107439]
[1747472413566,1.30172003,103460.0,103450.0,0.25651655]
[1747472413774,1.38010534,103460.0,103450.0,0.25651655]
[1747472413976,1.38010534,103460.0,103450.0,0.22421655]
[1747472414175,1.56010534,103460.0,103450.0,0.04421655]
[1747472414473,1.5655475,103460.0,103450.0,0.03877439]
[1747472418480,1.48716219,103460.0,103450.0,0.03877439]
[1747472418682,1.5655475,103460.0,103450.0,0.07207439]
[1747472418878,1.48716219,103460.0,103450.0,0.07207439]
[1747472419188,1.47503715,103460.0,103450.0,0.07207439]
[1747472419386,1.47503715,103460.0,103450.0,0.03877439]
[1747472420085,1.31826653,103460.0,103450.0,0.23204059]
[1747472420277,1.39665184,103460.0,103450.0,0.26474059]
[1747472420478,1.31826653,103460.0,103450.0,0.32834059]
[1747472420681,1.39665184,103460.0,103450.0,0.32834059]
[1747472421176,1.21665184,103460.0,103450.0,0.32834059]
[1747472421782,1.21665184,103460.0,103450.0,0.13507439]
[1747472423892,1.21665184,103460.0,103450.0,0.32834059]
[1747472426484,1.10636653,103460.0,103450.0,0.32834059]
[1747472426687,1.07586653,103460.0,103450.0,0.32834059]
[1747472426886,1.07586653,103460.0,103450.0,0.6140859]
[1747472427185,0.32136653,103460.0,103450.0,1.3623259]
[1747472427376,0.32136653,103460.0,103450.0,1.8758859]
[1747472428288,0.12811903,103460.0,103450.0,2.1258859]
[1747472428493,0.00744216,103460.0,103450.0,2.25121991]
[1747472429389,0.00744216,103460.0,103450.0,2.4262656]
[1747472429688,0.00744216,103460.0,103450.0,2.34788029]
[1747472431992,0.00744216,103460.0,103450.0,2.42554399]
[1747472432391,0.00744216,103460.0,103450.0,2.78634399]
[1747472432787,0.00744216,103460.0,103450.0,2.06474399]
[1747472433093,0.00744216,103460.0,103450.0,2.78634399]
[1747472433394,0.20068976,103460.0,103450.0,2.43960361]
[1747472433593,0.23228976,103460.0,103450.0,2.02488361]
[1747472433792,0.31067507,103460.0,103450.0,1.1282383]
[1747472434094,0.85147507,103460.0,103450.0,1.3629583]
[1747472434295,0.91677507,103460.0,103450.0,1.3629583]
[1747472434592,0.99516038,103460.0,103450.0,0.7549721]
[1747472434794,0.99516038,103460.0,103450.0,0.6913721]
[1747472434996,0.99516038,103460.0,103450.0,0.8846383]
[1747472435297,0.91677507,103460.0,103450.0,0.8846383]
[1747472435695,0.91677507,103460.0,103450.0,0.77207094]
[1747472436397,0.91677507,103460.0,103450.0,0.35517094]
[1747472439991,0.91677507,103460.0,103450.0,0.38687094]
[1747472440906,0.91677507,103460.0,103450.0,0.2596662]
[1747472441491,0.80628976,103460.0,103450.0,0.33805151]
[1747472441690,0.80628976,103460.0,103450.0,0.2596662]
[1747472442404,0.77308976,103460.0,103450.0,0.6765662]
[1747472443299,0.59308976,103460.0,103450.0,0.6765662]
[1747472444094,0.23228976,103460.0,103450.0,0.6765662]
[1747472444999,0.23228976,103460.0,103450.0,0.79613125]
[1747472445391,0.00744216,103460.0,103450.0,1.50359125]
[1747472445797,0.00744216,103460.0,103450.0,1.60025163]
[1747472445996,0.00744216,103460.0,103450.0,1.63704673]
[1747472446597,0.00744216,103460.0,103450.0,1.71129036]
[1747472447202,0.00744216,103460.0,103450.0,1.46129036]
[1747472450501,0.00744216,103460.0,103450.0,1.58970457]
[1747472451202,0.03864216,103460.0,103450.0,1.58970457]
[1747472451405,0.03864216,103460.0,103450.0,2.00422457]
[1747472451705,0.23188966,103460.0,103450.0,1.90756457]
[1747472451895,0.07074216,103460.0,103450.0,1.90756457]
[1747472452304,0.26398966,103460.0,103450.0,1.63700439]
[1747472452503,0.62478966,103460.0,103450.0,1.42077896]
[1747472452901,0.74435471,103460.0,103450.0,1.38907896]
[1747472453206,0.92435471,103460.0,103450.0,0.94185896]
[1747472454700,0.92435471,103460.0,103450.0,0.77488593]
[1747472456600,0.80478966,103460.0,103450.0,0.77488593]
[1747472457010,0.44398966,103460.0,103450.0,0.83748593]
[1747472457208,0.26398966,103460.0,103450.0,0.86968593]
[1747472457408,0.26398966,103460.0,103450.0,0.74265101]
[1747472457998,0.26398966,103460.0,103450.0,1.27673606]
[1747472457999,0.07074216,103460.0,103450.0,1.27673606]
[1747472458199,0.25074216,103460.0,103450.0,1.27673606]
[1747472458702,0.21864216,103460.0,103450.0,1.27673606]
[1747472459107,0.03864216,103460.0,103450.0,1.27673606]
[1747472460506,0.03864216,103460.0,103450.0,1.37339606]
[1747472460708,0.03864216,103460.0,103450.0,0.95887606]
[1747472460904,0.03864216,103460.0,103450.0,1.37335606]
[1747472461105,0.03864216,103460.0,103450.0,1.73415606]
[1747472461295,0.03864216,103460.0,103450.0,1.82412703]
[1747472461501,0.03864216,103460.0,103450.0,1.72746703]
[1747472461807,0.03864216,103460.0,103450.0,1.77654482]
[1747472463011,0.00744216,103460.0,103450.0,1.9698652]
[1747472464411,0.00744216,103460.0,103450.0,1.95689629]
[1747472465107,0.04064216,103460.0,103450.0,1.95689629]
[1747472466014,0.00744216,103460.0,103450.0,1.95689629]
[1747472467513,0.04064216,103460.0,103450.0,1.74969629]
[1747472467711,0.04064216,103460.0,103450.0,1.95689629]
[1747472470417,0.00744216,103460.0,103450.0,1.95689629]
[1747472472915,0.00744216,103460.0,103450.0,2.11739629]
[1747472473116,0.00744216,103460.0,103450.0,2.29739629]
[1747472473312,0.032,103470.0,103460.0,0.1932474]
[1747472473513,0.032,103470.0,103460.0,0.73621245]
[1747472473919,0.032,103470.0,103460.0,0.83287283]
[1747472474418,0.032,103470.0,103460.0,0.83387283]
[1747472474613,0.034,103470.0,103460.0,0.96620964]
[1747472474816,0.035,103470.0,103460.0,0.96720964]
[1747472475422,0.035,103470.0,103460.0,1.38410964]
[1747472476511,0.035,103470.0,103460.0,1.55122922]
[1747472476818,0.035,103470.0,103460.0,1.67814246]
[1747472477019,0.035,103470.0,103460.0,1.78865046]
[1747472477625,0.035,103470.0,103460.0,1.8027843]
[1747472478324,0.068,103470.0,103460.0,1.8027843]
[1747472479322,0.068,103470.0,103460.0,1.5956243]
[1747472479517,0.068,103470.0,103460.0,1.8027843]
[1747472479822,0.07344216,103470.0,103460.0,2.0099443]
[1747472480422,0.04044216,103470.0,103460.0,2.0099443]
[1747472480715,0.04044216,103470.0,103460.0,2.12950935]
[1747472480716,6e-08,103470.0,103460.0,2.12950935]
[1747472481023,6e-08,103470.0,103460.0,2.0099443]
[1747472481217,6e-08,103470.0,103460.0,2.1065963]
[1747472481615,6e-08,103470.0,103460.0,2.0099443]
[1747472481921,6e-08,103470.0,103460.0,2.2670963]
[1747472482127,6e-08,103470.0,103460.0,2.38666135]
[1747472482722,6e-08,103470.0,103460.0,2.22616135]
[1747472482922,6e-08,103470.0,103460.0,2.26180085]
[1747472483227,6e-08,103470.0,103460.0,2.44180085]
[1747472484022,6e-08,103470.0,103460.0,2.44080085]
[1747472484222,0.002,103480.0,103470.0,0.1932289]
[1747472484423,0.002,103480.0,103470.0,1.304859]
[1747472484921,0.0628,103490.0,103480.0,0.1932102]
[1747472485121,0.0628,103490.0,103480.0,1.16055379]
[1747472485513,0.0628,103490.0,103480.0,1.25719549]
[1747472485710,0.0332,103500.0,103490.0,0.1931915]
[1747472485912,0.0965,103500.0,103490.0,0.6169915]
[1747472486111,0.2765,103500.0,103490.0,0.6487915]
[1747472486324,0.2765,103500.0,103490.0,0.68447631]
[1747472487608,0.2795,103500.0,103490.0,0.68547631]
[1747472488226,0.2795,103500.0,103490.0,0.80504136]
[1747472488623,0.2825,103500.0,103490.0,0.80604136]
[1747472488919,0.2825,103500.0,103490.0,0.8959687]
[1747472489123,0.2825,103500.0,103490.0,0.77640365]
[1747472489341,0.95603785,103500.0,103490.0,0.32080365]
[1747472489526,0.95603785,103500.0,103490.0,0.73568365]
[1747472489727,0.95603785,103500.0,103490.0,0.32080365]
[1747472490419,0.95603785,103500.0,103490.0,0.73770365]
[1747472490621,0.8364728,103500.0,103490.0,0.73770365]
[1747472490915,0.95603785,103500.0,103490.0,0.73770365]
[1747472491821,0.95603785,103500.0,103490.0,0.6120915]
[1747472494625,0.95603785,103500.0,103490.0,1.0269715]
[1747472494926,0.96148001,103500.0,103490.0,1.0269715]
[1747472496227,0.96148001,103500.0,103490.0,1.0270115]
[1747472496530,0.96148001,103500.0,103490.0,0.6101115]
[1747472496837,0.96148001,103500.0,103490.0,0.002]
[1747472497029,1.08104506,103500.0,103490.0,0.002]
[1747472497223,0.96148001,103500.0,103490.0,0.1951915]
[1747472497429,0.96148001,103500.0,103490.0,0.4031515]
[1747472497623,1.05198858,103500.0,103490.0,0.4031515]
[1747472498827,1.05198858,103500.0,103490.0,0.1951915]
[1747472499031,1.51817763,103500.0,103490.0,0.1951915]
[1747472499332,1.39861258,103500.0,103490.0,0.1951915]
[1747472500131,1.14861258,103500.0,103490.0,0.002]
[1747472501034,0.78781258,103500.0,103490.0,0.002]
[1747472501234,1.50941258,103500.0,103490.0,0.002]
[1747472501432,1.50941258,103500.0,103490.0,0.1951915]
[1747472502534,1.41278858,103500.0,103490.0,0.1951915]
[1747472506040,1.29322353,103500.0,103490.0,0.1951915]
[1747472506338,1.29322353,103500.0,103490.0,0.2262915]
[1747472510242,0.57162353,103500.0,103490.0,0.2262915]
[1747472510545,0.93242353,103500.0,103490.0,0.2262915]
[1747472511328,0.93242353,103500.0,103490.0,0.6431915]
[1747472512543,0.93242353,103500.0,103490.0,0.6747915]
[1747472513741,0.93242353,103500.0,103490.0,1.0905115]
[1747472513930,1.05198858,103500.0,103490.0,0.8510315]
[1747472514129,1.05198858,103500.0,103490.0,0.6431915]
[1747472514344,1.05198858,103500.0,103490.0,0.1951915]
[1747472515438,1.05198858,103500.0,103490.0,0.2283915]
[1747472517351,1.05198858,103500.0,103490.0,0.26514941]
[1747472518743,1.05198858,103500.0,103490.0,0.50620941]
[1747472520638,0.93242353,103500.0,103490.0,0.50620941]
[1747472520837,0.93242353,103500.0,103490.0,0.53940941]
[1747472521045,0.93242353,103500.0,103490.0,0.65897446]
[1747472521246,0.93242353,103500.0,103490.0,0.69468659]
[1747472521847,0.93242353,103500.0,103490.0,0.57512154]
[1747472522044,0.89922353,103500.0,103490.0,0.57512154]
[1747472523747,0.92952353,103500.0,103490.0,0.57512154]
[1747472523942,0.92952353,103500.0,103490.0,0.36716154]
[1747472524750,0.89922353,103500.0,103490.0,0.57560154]
[1747472524949,0.83592353,103500.0,103490.0,0.69516659]
[1747472525145,0.64275073,103500.0,103490.0,0.69516659]
[1747472525350,0.83592353,103500.0,103490.0,0.69516659]
[1747472525748,0.83592353,103500.0,103490.0,0.48672659]
[1747472525952,0.83592353,103500.0,103490.0,0.57568154]
[1747472526251,0.83592353,103500.0,103490.0,0.78406154]
[1747472526452,0.86782353,103500.0,103490.0,1.20050154]
[1747472526857,0.86782353,103500.0,103490.0,1.20054154]
[1747472527155,0.50702353,103500.0,103490.0,1.20054154]
[1747472527343,0.50702353,103500.0,103490.0,0.78406154]
[1747472527547,0.50702353,103500.0,103490.0,1.20054154]
[1747472528354,0.50702353,103500.0,103490.0,1.32010659]
[1747472529855,0.50702353,103500.0,103490.0,1.20054154]
[1747472532259,0.50702353,103500.0,103490.0,0.99190154]
[1747472532458,0.50702353,103500.0,103490.0,1.20082154]
[1747472532760,0.53722353,103500.0,103490.0,1.20082154]
[1747472533563,0.50702353,103500.0,103490.0,1.20082154]
[1747472533955,0.50702353,103500.0,103490.0,1.20206154]
[1747472534262,0.50702353,103500.0,103490.0,1.32162659]
[1747472534952,0.31385073,103500.0,103490.0,0.91590712]
[1747472535161,0.31385073,103500.0,103490.0,1.33390712]
[1747472536062,0.22334216,103500.0,103490.0,1.42383446]
[1747472536270,0.22334216,103500.0,103490.0,1.09538941]
[1747472536457,0.22334216,103500.0,103490.0,1.42371446]
[1747472537065,0.19144216,103500.0,103490.0,1.42371446]
[1747472537367,0.19144216,103500.0,103490.0,1.38255709]
[1747472537558,0.22264216,103500.0,103490.0,1.38255709]
[1747472540368,0.19144216,103500.0,103490.0,1.38255709]
[1747472540860,0.22264216,103500.0,103490.0,1.38255709]
[1747472543566,0.25324216,103500.0,103490.0,1.38255709]
[1747472544659,0.19144216,103500.0,103490.0,1.74335709]
[1747472545665,0.22374216,103500.0,103490.0,1.74335709]
[1747472547071,0.22374216,103500.0,103490.0,1.53459709]
[1747472547372,0.44961506,103500.0,103490.0,1.74355709]
[1747472547571,0.48201506,103500.0,103490.0,1.32547709]
[1747472547771,0.48201506,103500.0,103490.0,1.38271709]
[1747472548572,0.48201506,103500.0,103490.0,1.33367865]
[1747472548771,0.48201506,103500.0,103490.0,0.91563865]
[1747472548972,0.48201506,103500.0,103490.0,1.33359865]
[1747472550281,0.22374216,103500.0,103490.0,1.69439865]
[1747472550984,0.19144216,103500.0,103490.0,1.69439865]
[1747472551988,0.19144216,103500.0,103490.0,1.61599097]
[1747472552184,0.22144216,103500.0,103490.0,1.69439865]
[1747472553487,0.28344216,103500.0,103490.0,1.27643865]
[1747472553884,0.28344216,103500.0,103490.0,1.69475865]
[1747472554185,0.28344216,103500.0,103490.0,1.73335382]
[1747472556791,0.28344216,103500.0,103490.0,1.37255382]
[1747472556990,0.28344216,103500.0,103490.0,1.73335382]
[1747472557495,0.28344216,103500.0,103490.0,1.78244929]
[1747472557878,0.28344216,103500.0,103490.0,1.705314]
[1747472559691,0.28344216,103500.0,103490.0,1.706674]
[1747472560492,0.28344216,103500.0,103490.0,1.09630393]
[1747472560493,0.47661506,103500.0,103490.0,1.09630393]
[1747472560685,0.28344216,103500.0,103490.0,1.38475161]
[1747472562397,0.47661506,103500.0,103490.0,1.38475161]
[1747472562696,0.47661506,103500.0,103490.0,1.35151161]
[1747472563096,0.47661506,103500.0,103490.0,1.35147161]
[1747472565399,0.47661506,103500.0,103490.0,1.23980393]
[1747472565599,0.47661506,103500.0,103490.0,1.31821161]
[1747472570399,0.47661506,103500.0,103490.0,1.10841161]
[1747472570605,0.91582274,103500.0,103490.0,0.78696393]
[1747472570798,0.91582274,103500.0,103490.0,1.20644393]
[1747472571193,0.83741506,103500.0,103490.0,1.20644393]
[1747472571389,0.91582274,103500.0,103490.0,1.20644393]
[1747472572207,0.91582274,103500.0,103490.0,0.99680393]
[1747472572398,1.00633131,103500.0,103490.0,0.9067391]
[1747472572600,1.00633131,103500.0,103490.0,0.85764363]
[1747472576908,1.00633131,103500.0,103490.0,0.64780363]
[1747472577311,1.08473899,103500.0,103490.0,0.03771213]
[1747472578111,1.08473899,103500.0,103490.0,0.23090363]
[1747472578310,1.08473899,103500.0,103490.0,0.03771213]
[1747472579103,1.18136299,103500.0,103490.0,0.03771213]
[1747472579509,1.21153129,103500.0,103490.0,0.002]
[1747472580502,1.11490729,103500.0,103490.0,0.002]
[1747472581112,1.46153129,103500.0,103490.0,0.002]
[1747472581314,1.49153129,103500.0,103490.0,0.002]
[1747472582017,1.94149129,103500.0,103490.0,0.002]
[1747472582607,0.1931915,103490.0,103480.0,0.03683083]
[1747472582812,0.80500686,103490.0,103480.0,0.03683083]
[1747472583008,0.1932102,103480.0,103470.0,0.05104061]
[1747472583210,1.12338556,103480.0,103470.0,0.05104061]
[1747472583414,1.22002556,103480.0,103470.0,0.05104061]
[1747472583613,1.25182556,103480.0,103470.0,0.05104061]
[1747472584219,1.43182556,103480.0,103470.0,0.05104061]
[1747472584414,1.04661788,103480.0,103470.0,0.24426941]
[1747472584612,0.8292102,103480.0,103470.0,0.27426941]
[1747472584811,0.4684102,103480.0,103470.0,0.30516941]
[1747472585021,0.8292102,103480.0,103470.0,0.30516941]
[1747472585320,0.90761788,103480.0,103470.0,0.30516941]
[1747472585508,0.90861788,103480.0,103470.0,0.30616941]
[1747472586516,0.91406004,103480.0,103470.0,0.30616941]
[1747472586719,0.99246772,103480.0,103470.0,0.05204061]
[1747472587019,1.08910772,103480.0,103470.0,0.05204061]
[1747472587720,1.63898772,103480.0,103470.0,0.00293283]
[1747472588622,1.75966459,103480.0,103470.0,0.00293283]
[1747472589221,1.50966459,103480.0,103470.0,0.00293283]
[1747472589706,1.50966459,103480.0,103470.0,0.22866173]
[1747472589707,1.03473691,103480.0,103470.0,0.22866173]
[1747472589906,0.95632923,103480.0,103470.0,0.30706941]
[1747472590112,0.92452923,103480.0,103470.0,0.33836941]
[1747472590315,0.92452923,103480.0,103470.0,0.25996173]
[1747472590511,0.89392923,103480.0,103470.0,0.25996173]
[1747472591221,0.89392923,103480.0,103470.0,0.75526941]
[1747472591222,0.86212923,103480.0,103470.0,0.75526941]
[1747472591435,0.74145236,103480.0,103470.0,0.75526941]
[1747472591619,0.54824216,103480.0,103470.0,0.75526941]
[1747472591818,0.54824216,103480.0,103470.0,1.11606941]
[1747472591819,0.18744216,103480.0,103470.0,1.11606941]
[1747472592117,0.00744216,103480.0,103470.0,1.11606941]
[1747472592317,0.00744216,103480.0,103470.0,1.15175444]
[1747472593214,0.00744216,103480.0,103470.0,1.1928645]
[1747472594922,0.20065236,103480.0,103470.0,1.07334676]
[1747472595224,0.74145236,103480.0,103470.0,0.71254676]
[1747472595421,0.80435236,103480.0,103470.0,0.71254676]
[1747472595624,0.38065236,103480.0,103470.0,0.71254676]
[1747472595924,0.38065236,103480.0,103470.0,1.13494676]
[1747472599021,0.38065236,103480.0,103470.0,0.92314676]
[1747472599225,0.38065236,103480.0,103470.0,1.13486676]
[1747472599617,0.38065236,103480.0,103470.0,0.71254676]
[1747472599920,0.74145236,103480.0,103470.0,0.71254676]
[1747472600124,0.80565236,103480.0,103470.0,0.71254676]
[1747472600753,0.80565236,103480.0,103470.0,0.92426676]
[1747472601836,0.80565236,103480.0,103470.0,0.71254676]
[1747472602031,0.44485236,103480.0,103470.0,0.71254676]
[1747472602231,0.44485236,103480.0,103470.0,1.13486676]
[1747472602529,0.80565236,103480.0,103470.0,1.13486676]
[1747472603620,0.44485236,103480.0,103470.0,1.13486676]
[1747472604423,0.44485236,103480.0,103470.0,0.71796676]
[1747472606726,0.80565236,103480.0,103470.0,0.71796676]
[1747472607417,0.80565236,103480.0,103470.0,1.13486676]
[1747472608021,0.44485236,103480.0,103470.0,1.13486676]
[1747472608324,0.80565236,103480.0,103470.0,1.13486676]
[1747472610022,0.44485236,103480.0,103470.0,1.13486676]
[1747472610327,0.80565236,103480.0,103470.0,1.18397454]
[1747472611222,0.80565236,103480.0,103470.0,0.97225454]
[1747472611426,0.9251701,103480.0,103470.0,0.94095454]
[1747472611626,1.2859701,103480.0,103470.0,0.50462564]
[1747472612126,1.2859701,103480.0,103470.0,0.46894061]
[1747472612921,1.2859701,103480.0,103470.0,0.66216951]
[1747472613331,1.2859701,103480.0,103470.0,0.24526951]
[1747472614432,1.40664697,103480.0,103470.0,0.24526951]
[1747472614627,1.42664697,103480.0,103470.0,0.05204061]
[1747472614835,1.52328697,103480.0,103470.0,0.05204061]
[1747472615023,1.52328697,103480.0,103470.0,0.00293283]
[1747472615824,1.42664697,103480.0,103470.0,0.19616173]
[1747472616123,1.40664697,103480.0,103470.0,0.19616173]
[1747472616318,1.40664697,103480.0,103470.0,0.22716173]
[1747472617030,1.40664697,103480.0,103470.0,0.19616173]
[1747472618326,1.40664697,103480.0,103470.0,0.22876173]
[1747472620135,1.40664697,103480.0,103470.0,0.19616173]
[1747472621133,1.40664697,103480.0,103470.0,0.22846173]
[1747472622335,1.40664697,103480.0,103470.0,0.64536173]
[1747472624933,1.40564697,103480.0,103470.0,0.64536173]
[1747472625141,1.41164697,103480.0,103470.0,0.64536173]
[1747472626242,1.41564697,103480.0,103470.0,0.64436173]
[1747472628043,1.41564697,103480.0,103470.0,0.41883283]
[1747472628241,0.1932475,103460.0,103450.0,0.59047822]
[1747472628446,1.03436524,103460.0,103450.0,0.39421202]
[1747472628741,1.09796524,103460.0,103450.0,0.31105159]
[1747472629241,1.27796524,103460.0,103450.0,0.31105159]
[1747472629430,1.29280791,103460.0,103450.0,0.34405159]
[1747472629634,1.29480791,103460.0,103450.0,0.34505159]
[1747472629929,1.27996524,103460.0,103450.0,0.34505159]
[1747472630630,1.28196524,103460.0,103450.0,0.31305159]
[1747472631241,0.5311998,103460.0,103450.0,0.39389172]
[1747472631438,0.8919998,103460.0,103450.0,0.30487398]
[1747472631642,0.8919998,103460.0,103450.0,0.2557662]
[1747472633347,0.6351523,103460.0,103450.0,0.2557662]
[1747472633549,0.2743523,103460.0,103450.0,0.37528394]
[1747472634349,0.0943523,103460.0,103450.0,0.65171057]
[1747472634644,0.004,103460.0,103450.0,0.68775291]
[1747472635752,0.004,103460.0,103450.0,0.77947517]
[1747472635942,0.069,103460.0,103450.0,0.77947517]
[1747472636148,0.069,103460.0,103450.0,0.56823517]
[1747472636348,0.0359,103460.0,103450.0,0.56823517]
[1747472638155,0.004,103460.0,103450.0,0.56823517]
[1747472638459,0.004,103460.0,103450.0,1.04855291]
[1747472639557,0.0903523,103470.0,103460.0,0.1932475]
[1747472639853,0.0903523,103470.0,103460.0,0.82906524]
[1747472640249,0.2703523,103470.0,103460.0,0.82906524]
[1747472640656,0.2723523,103470.0,103460.0,0.83006524]
[1747472640851,0.4655811,103470.0,103460.0,0.4991875]
[1747472641057,0.4655811,103470.0,103460.0,0.78510745]
[1747472641058,0.182,103470.0,103460.0,0.78510745]
[1747472641259,0.004,103470.0,103460.0,0.90562519]
[1747472641749,0.004,103470.0,103460.0,1.26642519]
[1747472644160,0.184,103470.0,103460.0,1.26642519]
[1747472644362,0.184,103470.0,103460.0,1.31553297]
[1747472645360,0.18944216,103470.0,103460.0,1.31553297]
[1747472645664,0.21954216,103470.0,103460.0,1.19601523]
[1747472646161,0.03954216,103470.0,103460.0,1.19601523]
[1747472646459,0.03954216,103470.0,103460.0,1.47244186]
[1747472646953,0.23277096,103470.0,103460.0,1.04980186]
[1747472647155,0.9254887,103470.0,103460.0,0.65890186]
[1747472648552,0.9254887,103470.0,103460.0,0.62790186]
[1747472648754,0.80597096,103470.0,103460.0,0.7474196]
[1747472648959,0.61274216,103470.0,103460.0,0.66050186]
[1747472649162,0.00944216,103470.0,103460.0,1.1408196]
[1747472651856,6e-08,103470.0,103460.0,1.33747064]
[1747472653758,6e-08,103470.0,103460.0,1.42731554]
[1747472656578,6e-08,103470.0,103460.0,1.7522245]
[1747472656769,0.06420006,103470.0,103460.0,1.7522245]
[1747472657165,0.06420006,103470.0,103460.0,1.3306645]
[1747472657664,0.06420006,103470.0,103460.0,1.7522645]
[1747472657869,0.06420006,103470.0,103460.0,1.42190676]
[1747472658070,0.06420006,103470.0,103460.0,1.7522245]
[1747472658373,0.5569467,103470.0,103460.0,0.85034676]
[1747472658569,0.9177467,103470.0,103460.0,1.17210676]
[1747472658771,0.9177467,103470.0,103460.0,0.75034676]
[1747472658969,0.79822896,103470.0,103460.0,1.17206676]
[1747472659770,0.79822896,103470.0,103460.0,1.04354425]
[1747472660366,0.24420006,103470.0,103460.0,1.52386199]
[1747472660764,0.18000006,103470.0,103460.0,1.52386199]
[1747472660976,0.18000006,103470.0,103460.0,1.66386199]
[1747472661184,0.18000006,103470.0,103460.0,1.76051303]
[1747472661185,6e-08,103470.0,103460.0,1.76051303]
[1747472661566,6e-08,103470.0,103460.0,1.97668277]
[1747472661875,6e-08,103470.0,103460.0,2.22668277]
[1747472662074,6e-08,103470.0,103460.0,2.10716503]
[1747472662381,6e-08,103470.0,103460.0,2.03716503]
[1747472662572,6e-08,103470.0,103460.0,2.13992411]
[1747472662772,0.00100006,103470.0,103460.0,2.14092411]
[1747472663079,0.00200006,103470.0,103460.0,2.14392411]
[1747472663266,6e-08,103470.0,103460.0,2.14392411]
[1747472663577,0.00544222,103470.0,103460.0,2.14392411]
[1747472664069,0.00544222,103470.0,103460.0,1.96392411]
[1747472664779,0.00540222,103470.0,103460.0,1.9796734]
[1747472667281,0.00540222,103470.0,103460.0,1.99392401]
[1747472667480,2e-08,103470.0,103460.0,2.06766491]
[1747472671568,2e-08,103470.0,103460.0,2.05525659]
[1747472672672,2e-08,103470.0,103460.0,2.41605659]
[1747472674575,2e-08,103470.0,103460.0,2.31940459]
[1747472675778,2e-08,103470.0,103460.0,2.39314549]
[1747472675981,2e-08,103470.0,103460.0,2.33181291]
[1747472676180,0.18000002,103470.0,103460.0,2.33181291]
[1747472677791,0.18000002,103470.0,103460.0,2.22905383]
[1747472677975,0.18000002,103470.0,103460.0,1.50745383]
[1747472678176,0.12399132,103470.0,103460.0,2.22905383]
[1747472678376,0.06687422,103470.0,103460.0,2.22905383]
[1747472678776,0.07231638,103470.0,103460.0,2.22905383]
[1747472680191,0.00408088,103470.0,103460.0,2.22905383]
[1747472680394,8e-08,103470.0,103460.0,2.22905383]
[1747472680878,8e-08,103470.0,103460.0,2.33181291]
[1747472681079,8e-08,103470.0,103460.0,2.45133065]
[1747472681279,8e-08,103470.0,103460.0,2.55133065]
[1747472682175,0.03975288,103470.0,103460.0,2.43181291]
[1747472682382,0.0653,103480.0,103470.0,0.1932289]
[1747472682582,0.0653,103480.0,103470.0,0.88966438]
[1747472683192,0.2453,103480.0,103470.0,0.98631542]
[1747472683380,0.2453,103480.0,103470.0,0.86679768]
[1747472683691,0.2453,103480.0,103470.0,0.86779768]
[1747472684194,0.2453,103480.0,103470.0,0.86879768]
[1747472684492,0.2453,103480.0,103470.0,0.98338147]
[1747472688494,0.2453,103480.0,103470.0,1.2598081]
[1747472689302,0.2453,103480.0,103470.0,0.8990081]
[1747472689497,0.2453,103480.0,103470.0,1.6206081]
[1747472690000,0.25074216,103480.0,103470.0,1.6206081]
[1747472690404,0.25074216,103480.0,103470.0,1.86104553]
[1747472690605,0.25074216,103480.0,103470.0,1.65024553]
[1747472690999,0.25074216,103480.0,103470.0,2.07791357]
[1747472694309,0.25074216,103480.0,103470.0,1.95839583]
[1747472694513,0.25074216,103480.0,103470.0,2.07791357]
[1747472696400,0.25074216,103480.0,103470.0,2.09027411]
[1747472696813,0.25074216,103480.0,103470.0,1.98751503]
[1747472697512,0.25074216,103480.0,103470.0,2.01791503]
[1747472700710,0.25074216,103480.0,103470.0,1.68759729]
[1747472700912,0.25074216,103480.0,103470.0,1.79385639]
[1747472701104,0.44395236,103480.0,103470.0,0.86185639]
[1747472701302,0.9242701,103480.0,103470.0,0.86185639]
[1747472701504,0.9242701,103480.0,103470.0,1.07253639]
[1747472701804,1.2709101,103480.0,103470.0,0.45786749]
[1747472702311,1.2709101,103480.0,103470.0,0.35806749]
[1747472702711,1.2709101,103480.0,103470.0,0.50139639]
[1747472702905,1.39158697,103480.0,103470.0,0.06485707]
[1747472703113,0.1932289,103470.0,103460.0,0.36693668]
[1747472703303,0.79306438,103470.0,103460.0,0.36693668]
[1747472703503,1.13971638,103470.0,103460.0,0.17368918]
[1747472703913,1.13971638,103470.0,103460.0,0.07358918]
[1747472704113,0.3608,103470.0,103460.0,0.1932476]
[1747472704302,0.3608,103470.0,103460.0,0.2271476]
[1747472704303,0.95116784,103470.0,103460.0,0.2271476]
[1747472704608,1.29781984,103470.0,103460.0,0.2271476]
[1747472704802,1.41733758,103470.0,103460.0,0.1962476]
[1747472705002,1.29781984,103470.0,103460.0,0.1962476]
[1747472705209,1.41733758,103470.0,103460.0,0.1962475]
[1747472705406,1.41733758,103470.0,103460.0,0.003]
[1747472705607,1.50765028,103470.0,103460.0,0.1962475]